[Event "Titled Tuesday Blitz June 20 Early 2023"]
[White "Koshulyan, Egor A."]
[Black "Puranik, Abhimanyu"]
[WhiteFideId "24237000"]
[BlackFideId "5061245"]
[WhiteElo "2216"]
[BlackElo "2460"]
[Result "0-1"]
[Round "5"]
[TimeControl "180+2"]
[Date "2023.06.20"]
[WhiteClock "0:00:00"]
[BlackClock "0:00:02"]
[Board "26"]

1. e4 {[%clk 0:03:00]}  c5 {[%clk 0:02:58]} 2. Nf3 {[%clk 0:03:00]}  Nc6 {[%clk 0:02:57]} 3. d4 {[%clk 0:03:01]}  cxd4 {[%clk 0:02:57]} 4. Nxd4 {[%clk 0:03:02]}  Nf6 {[%clk 0:02:58]} 5. Nc3 {[%clk 0:03:02]}  d6 {[%clk 0:02:58]} 6. Bg5 {[%clk 0:03:01]}  Bd7 {[%clk 0:02:59]} 7. Qd2 {[%clk 0:03:02]}  a6 {[%clk 0:02:58]} 8. f3 {[%clk 0:03:02]}  e6 {[%clk 0:02:54]} 9. O-O-O {[%clk 0:03:02]}  Nxd4 {[%clk 0:02:51]} 10. Qxd4 {[%clk 0:03:03]}  Be7 {[%clk 0:02:51]} 11. h4 {[%clk 0:03:02]}  h6 {[%clk 0:02:45]} 12. Be3 {[%clk 0:03:01]}  h5 {[%clk 0:02:45]} 13. Qd2 {[%clk 0:02:59]}  b5 {[%clk 0:02:40]} 14. Ne2 {[%clk 0:02:58]}  Qc7 {[%clk 0:02:36]} 15. Nd4 {[%clk 0:02:58]}  Rc8 {[%clk 0:02:32]} 16. Kb1 {[%clk 0:02:57]}  e5 {[%clk 0:02:18]} 17. Nb3 {[%clk 0:02:55]}  Be6 {[%clk 0:02:13]} 18. Bd3 {[%clk 0:02:19]}  d5 {[%clk 0:02:12]} 19. exd5 {[%clk 0:02:19]}  Nxd5 {[%clk 0:02:12]} 20. Bg5 {[%clk 0:01:51]}  f6 {[%clk 0:01:57]} 21. Bg6+ {[%clk 0:01:49]}  Kf8 {[%clk 0:01:57]} 22. Be3 {[%clk 0:01:46]}  Nxe3 {[%clk 0:01:51]} 23. Qxe3 {[%clk 0:01:47]}  f5 {[%clk 0:01:51]} 24. g4 {[%clk 0:00:34]}  hxg4 {[%clk 0:01:50]} 25. fxg4 {[%clk 0:00:34]}  Qxc2+ {[%clk 0:01:32]} 26. Ka1 {[%clk 0:00:33]}  f4 {[%clk 0:01:24]} 27. Qxe5 {[%clk 0:00:06]}  Qxg6 {[%clk 0:01:23]} 28. Rhe1 {[%clk 0:00:07]}  Qf6 {[%clk 0:00:27]} 29. Qe4 {[%clk 0:00:02]}  Bxb3 {[%clk 0:00:24]} 30. g5 {[%clk 0:00:02]}  Qf7 {[%clk 0:00:17]} 31. axb3 {[%clk 0:00:02]}  g6 {[%clk 0:00:12]} 32. Rd7 {[%clk 0:00:02]}  Re8 {[%clk 0:00:12]} 33. Qd4 {[%clk 0:00:03]}  Rxh4 {[%clk 0:00:11]} 34. Rf1 {[%clk 0:00:03]}  Kg8 {[%clk 0:00:07]} 35. Re1 {[%clk 0:00:03]}  Rh3 {[%clk 0:00:05]} 36. Qe4 {[%clk 0:00:02]}  Re3 {[%clk 0:00:04]} 37. Rxe3 {[%clk 0:00:01]}  fxe3 {[%clk 0:00:05]} 38. Qxe3 {[%clk 0:00:02]}  Kf8 {[%clk 0:00:05]} 39. Qd4 {[%clk 0:00:03]}  Kg8 {[%clk 0:00:03]} 40. Qe3 {[%clk 0:00:03]}  Bf8 {[%clk 0:00:03]} 41. Qd4 {[%clk 0:00:00]}  Qxb3 {[%clk 0:00:02]} 0-1


[Site "https://www.chess.com"]

[Event "Titled Tuesday Blitz June 20 Early 2023"]
[White "Durarbayli, Vasif"]
[Black "Druska, Juraj"]
[WhiteFideId "13402935"]
[BlackFideId "14915650"]
[WhiteElo "2551"]
[BlackElo "2415"]
[Result "0-1"]
[Round "5"]
[TimeControl "180+2"]
[Date "2023.06.20"]
[WhiteClock "0:00:00"]
[BlackClock "0:00:20"]
[Board "29"]

1. e4 {[%clk 0:03:00]}  d6 {[%clk 0:02:50]} 2. d4 {[%clk 0:02:58]}  Nf6 {[%clk 0:02:51]} 3. Nc3 {[%clk 0:02:58]}  Nbd7 {[%clk 0:02:52]} 4. Nf3 {[%clk 0:02:55]}  e5 {[%clk 0:02:52]} 5. h3 {[%clk 0:02:55]}  g6 {[%clk 0:02:51]} 6. Be3 {[%clk 0:02:55]}  Bg7 {[%clk 0:02:51]} 7. Qd2 {[%clk 0:02:55]}  O-O {[%clk 0:02:52]} 8. O-O-O {[%clk 0:02:56]}  Re8 {[%clk 0:02:41]} 9. dxe5 {[%clk 0:02:51]}  Nxe5 {[%clk 0:02:42]} 10. Nxe5 {[%clk 0:02:50]}  Rxe5 {[%clk 0:02:43]} 11. f4 {[%clk 0:02:51]}  Nxe4 {[%clk 0:02:38]} 12. Nxe4 {[%clk 0:02:40]}  Rxe4 {[%clk 0:02:39]} 13. Bd3 {[%clk 0:02:40]}  Ra4 {[%clk 0:02:04]} 14. a3 {[%clk 0:02:33]}  Qf6 {[%clk 0:02:02]} 15. c3 {[%clk 0:02:32]}  Bf5 {[%clk 0:02:00]} 16. Bb5 {[%clk 0:02:17]}  Ra5 {[%clk 0:01:43]} 17. Bd4 {[%clk 0:02:13]}  Qd8 {[%clk 0:01:39]} 18. Bxg7 {[%clk 0:02:08]}  Kxg7 {[%clk 0:01:38]} 19. c4 {[%clk 0:02:03]}  c6 {[%clk 0:01:37]} 20. g4 {[%clk 0:01:40]}  cxb5 {[%clk 0:01:21]} 21. gxf5 {[%clk 0:01:26]}  bxc4 {[%clk 0:01:21]} 22. fxg6 {[%clk 0:01:26]}  hxg6 {[%clk 0:01:20]} 23. Qc3+ {[%clk 0:01:07]}  Kg8 {[%clk 0:01:15]} 24. h4 {[%clk 0:01:07]}  Rh5 {[%clk 0:01:12]} 25. f5 {[%clk 0:00:55]}  Rxf5 {[%clk 0:00:57]} 26. h5 {[%clk 0:00:40]}  Qf6 {[%clk 0:00:56]} 27. Rd4 {[%clk 0:00:36]}  Rf1+ {[%clk 0:00:50]} 28. Rxf1 {[%clk 0:00:35]}  Qxf1+ {[%clk 0:00:51]} 29. Rd1 {[%clk 0:00:35]}  Qf4+ {[%clk 0:00:49]} 30. Kb1 {[%clk 0:00:33]}  Qf5+ {[%clk 0:00:45]} 31. Ka2 {[%clk 0:00:33]}  Qxh5 {[%clk 0:00:45]} 32. Rxd6 {[%clk 0:00:28]}  Re8 {[%clk 0:00:40]} 33. Rd7 {[%clk 0:00:19]}  b5 {[%clk 0:00:39]} 34. Qf6 {[%clk 0:00:13]}  Qf5 {[%clk 0:00:30]} 35. Qc6 {[%clk 0:00:05]}  c3 {[%clk 0:00:22]} 36. Rd6 {[%clk 0:00:00]}  Rc8 {[%clk 0:00:20]} 0-1


[Site "https://www.chess.com"]

[Event "Titled Tuesday Blitz June 20 Early 2023"]
[White "Baskakov, Egor"]
[Black "Ashraf, Artin"]
[WhiteFideId "24197866"]
[BlackFideId "22514805"]
[WhiteElo "2225"]
[BlackElo "2224"]
[Result "0-1"]
[Round "5"]
[TimeControl "180+2"]
[Date "2023.06.20"]
[WhiteClock "0:01:09"]
[BlackClock "0:01:16"]
[Board "31"]

1. e4 {[%clk 0:03:00]}  c5 {[%clk 0:02:58]} 2. Nf3 {[%clk 0:03:00]}  d6 {[%clk 0:02:58]} 3. d4 {[%clk 0:02:59]}  cxd4 {[%clk 0:02:59]} 4. Nxd4 {[%clk 0:02:59]}  Nf6 {[%clk 0:03:00]} 5. Nc3 {[%clk 0:03:00]}  a6 {[%clk 0:03:00]} 6. a4 {[%clk 0:02:59]}  e6 {[%clk 0:02:53]} 7. g3 {[%clk 0:02:59]}  b6 {[%clk 0:02:37]} 8. Bg2 {[%clk 0:02:59]}  Bb7 {[%clk 0:02:37]} 9. O-O {[%clk 0:02:57]}  Qc7 {[%clk 0:02:37]} 10. Re1 {[%clk 0:02:55]}  Be7 {[%clk 0:02:36]} 11. f4 {[%clk 0:02:51]}  O-O {[%clk 0:02:34]} 12. Be3 {[%clk 0:02:43]}  Nc6 {[%clk 0:02:18]} 13. Nxc6 {[%clk 0:02:40]}  Bxc6 {[%clk 0:02:17]} 14. Qd2 {[%clk 0:02:31]}  Qb7 {[%clk 0:02:09]} 15. Bd4 {[%clk 0:02:26]}  b5 {[%clk 0:01:58]} 16. axb5 {[%clk 0:02:22]}  axb5 {[%clk 0:01:57]} 17. Rxa8 {[%clk 0:02:23]}  Rxa8 {[%clk 0:01:57]} 18. e5 {[%clk 0:02:22]}  dxe5 {[%clk 0:01:50]} 19. Bxe5 {[%clk 0:02:23]}  Rd8 {[%clk 0:01:33]} 20. Qe2 {[%clk 0:02:18]}  Bc5+ {[%clk 0:01:29]} 21. Kh1 {[%clk 0:02:14]}  Ng4 {[%clk 0:01:26]} 22. Ne4 {[%clk 0:01:26]}  Nf2+ {[%clk 0:01:17]} 23. Nxf2 {[%clk 0:01:18]}  Bxg2+ {[%clk 0:01:16]} 24. Kg1 {[%clk 0:01:09]}  Bh3 {[%clk 0:01:16]} 0-1


[Site "https://www.chess.com"]

[Event "Titled Tuesday Blitz June 20 Early 2023"]
[White "Domingo Nunez, Alejandro"]
[Black "Nogerbek, Kazybek"]
[WhiteFideId "22245561"]
[BlackFideId "13710427"]
[WhiteElo "2291"]
[BlackElo "2498"]
[Result "0-1"]
[Round "5"]
[TimeControl "180+2"]
[Date "2023.06.20"]
[WhiteClock "0:00:02"]
[BlackClock "0:01:04"]
[Board "34"]

1. Nf3 {[%clk 0:03:00]}  g6 {[%clk 0:02:57]} 2. g3 {[%clk 0:02:50]}  Bg7 {[%clk 0:02:57]} 3. d4 {[%clk 0:02:50]}  d6 {[%clk 0:02:57]} 4. Bg2 {[%clk 0:02:50]}  Nc6 {[%clk 0:02:58]} 5. O-O {[%clk 0:02:48]}  Bd7 {[%clk 0:02:58]} 6. b3 {[%clk 0:02:48]}  Qc8 {[%clk 0:02:58]} 7. Re1 {[%clk 0:02:46]}  Bh3 {[%clk 0:02:58]} 8. Bh1 {[%clk 0:02:46]}  h5 {[%clk 0:02:58]} 9. e4 {[%clk 0:02:34]}  h4 {[%clk 0:02:57]} 10. Bb2 {[%clk 0:02:34]}  hxg3 {[%clk 0:02:54]} 11. fxg3 {[%clk 0:02:34]}  Bg4 {[%clk 0:02:52]} 12. c3 {[%clk 0:01:52]}  e5 {[%clk 0:02:48]} 13. Qd3 {[%clk 0:01:32]}  Nf6 {[%clk 0:02:43]} 14. Nbd2 {[%clk 0:01:32]}  O-O {[%clk 0:02:40]} 15. d5 {[%clk 0:01:26]}  Nb8 {[%clk 0:02:39]} 16. c4 {[%clk 0:01:26]}  a5 {[%clk 0:02:37]} 17. Nf1 {[%clk 0:01:18]}  Na6 {[%clk 0:02:34]} 18. Qc2 {[%clk 0:01:11]}  Nc5 {[%clk 0:02:33]} 19. Ba3 {[%clk 0:01:06]}  b6 {[%clk 0:02:21]} 20. Ne3 {[%clk 0:00:53]}  Bd7 {[%clk 0:02:21]} 21. Ng2 {[%clk 0:00:44]}  Qd8 {[%clk 0:02:12]} 22. Ngh4 {[%clk 0:00:44]}  Nh7 {[%clk 0:01:55]} 23. Bc1 {[%clk 0:00:44]}  Bf6 {[%clk 0:01:51]} 24. Rf1 {[%clk 0:00:43]}  Ng5 {[%clk 0:01:48]} 25. Nxg5 {[%clk 0:00:14]}  Bxg5 {[%clk 0:01:49]} 26. Bd2 {[%clk 0:00:15]}  Bxh4 {[%clk 0:01:47]} 27. gxh4 {[%clk 0:00:16]}  Qxh4 {[%clk 0:01:47]} 28. Bg2 {[%clk 0:00:16]}  Bh3 {[%clk 0:01:47]} 29. Bxh3 {[%clk 0:00:13]}  Qxh3 {[%clk 0:01:48]} 30. Rae1 {[%clk 0:00:08]}  f5 {[%clk 0:01:46]} 31. Re3 {[%clk 0:00:06]}  Qh5 {[%clk 0:01:42]} 32. Rg3 {[%clk 0:00:06]}  f4 {[%clk 0:01:42]} 33. Rg2 {[%clk 0:00:06]}  Kf7 {[%clk 0:01:40]} 34. a3 {[%clk 0:00:06]}  g5 {[%clk 0:01:39]} 35. b4 {[%clk 0:00:07]}  axb4 {[%clk 0:01:40]} 36. axb4 {[%clk 0:00:07]}  Nd7 {[%clk 0:01:41]} 37. Qb3 {[%clk 0:00:05]}  Ke7 {[%clk 0:01:37]} 38. c5 {[%clk 0:00:03]}  bxc5 {[%clk 0:01:37]} 39. bxc5 {[%clk 0:00:04]}  Nxc5 {[%clk 0:01:38]} 40. Qc4 {[%clk 0:00:03]}  g4 {[%clk 0:01:35]} 41. Bb4 {[%clk 0:00:03]}  Ra4 {[%clk 0:01:32]} 42. Qb5 {[%clk 0:00:03]}  Rxb4 {[%clk 0:01:16]} 43. Qxb4 {[%clk 0:00:03]}  f3 {[%clk 0:01:17]} 44. Rg3 {[%clk 0:00:03]}  f2+ {[%clk 0:01:10]} 45. Kg2 {[%clk 0:00:03]}  Rh8 {[%clk 0:01:07]} 46. Rxf2 {[%clk 0:00:01]}  Qxh2+ {[%clk 0:01:07]} 47. Kf1 {[%clk 0:00:01]}  Qxg3 {[%clk 0:01:04]} 48. Qa4 {[%clk 0:00:02]} 0-1


[Site "https://www.chess.com"]

[Event "Titled Tuesday Blitz June 20 Early 2023"]
[White "Mortazavi, Ali"]
[Black "Ibarra Jerez, Jose Carlos"]
[WhiteFideId "401323"]
[BlackFideId "2226332"]
[WhiteElo "2339"]
[BlackElo "2631"]
[Result "1-0"]
[Round "5"]
[TimeControl "180+2"]
[Date "2023.06.20"]
[WhiteClock "0:00:06"]
[BlackClock "0:00:00"]
[Board "36"]

1. Nf3 {[%clk 0:02:59]}  d6 {[%clk 0:02:59]} 2. e4 {[%clk 0:02:59]}  c5 {[%clk 0:02:59]} 3. d3 {[%clk 0:02:56]}  Nc6 {[%clk 0:02:59]} 4. g3 {[%clk 0:02:57]}  g6 {[%clk 0:02:59]} 5. Bg2 {[%clk 0:02:57]}  Bg7 {[%clk 0:03:00]} 6. O-O {[%clk 0:02:58]}  e5 {[%clk 0:03:01]} 7. a3 {[%clk 0:02:58]}  Nge7 {[%clk 0:03:01]} 8. b4 {[%clk 0:02:58]}  O-O {[%clk 0:03:00]} 9. bxc5 {[%clk 0:02:54]}  dxc5 {[%clk 0:03:01]} 10. a4 {[%clk 0:02:52]}  b6 {[%clk 0:03:01]} 11. Na3 {[%clk 0:02:48]}  h6 {[%clk 0:03:00]} 12. Rb1 {[%clk 0:02:47]}  Be6 {[%clk 0:03:00]} 13. Nd2 {[%clk 0:02:34]}  Na5 {[%clk 0:02:57]} 14. f4 {[%clk 0:02:24]}  exf4 {[%clk 0:02:53]} 15. gxf4 {[%clk 0:02:24]}  Ba2 {[%clk 0:02:53]} 16. Rb2 {[%clk 0:02:23]}  Be6 {[%clk 0:02:32]} 17. Kh1 {[%clk 0:02:23]}  f5 {[%clk 0:02:28]} 18. Rb1 {[%clk 0:02:10]}  Nd5 {[%clk 0:02:26]} 19. exd5 {[%clk 0:02:09]}  Bxd5 {[%clk 0:02:19]} 20. Bb2 {[%clk 0:02:06]}  Bxb2 {[%clk 0:02:07]} 21. Rxb2 {[%clk 0:02:06]}  Bxg2+ {[%clk 0:02:03]} 22. Kxg2 {[%clk 0:02:07]}  Qd4 {[%clk 0:02:03]} 23. Nac4 {[%clk 0:01:59]}  Rae8 {[%clk 0:01:52]} 24. Rf2 {[%clk 0:01:58]}  Re6 {[%clk 0:01:46]} 25. Rb1 {[%clk 0:01:52]}  Nc6 {[%clk 0:01:41]} 26. Qf3 {[%clk 0:01:44]}  Rfe8 {[%clk 0:01:36]} 27. Qg3 {[%clk 0:01:40]}  Kh7 {[%clk 0:01:28]} 28. h4 {[%clk 0:01:34]}  Qd5+ {[%clk 0:01:22]} 29. Qf3 {[%clk 0:01:29]}  Qd8 {[%clk 0:01:20]} 30. Qg3 {[%clk 0:01:28]}  Qd5+ {[%clk 0:01:19]} 31. Kh2 {[%clk 0:01:22]}  Nd4 {[%clk 0:01:06]} 32. Ne5 {[%clk 0:01:05]}  Nxc2 {[%clk 0:01:00]} 33. Ndf3 {[%clk 0:01:01]}  Ne3 {[%clk 0:00:57]} 34. Rg1 {[%clk 0:00:51]}  Rg8 {[%clk 0:00:31]} 35. Qh3 {[%clk 0:00:48]}  Kg7 {[%clk 0:00:17]} 36. h5 {[%clk 0:00:29]}  g5 {[%clk 0:00:18]} 37. Nxg5 {[%clk 0:00:26]}  Rxe5 {[%clk 0:00:10]} 38. fxe5 {[%clk 0:00:18]}  Qxe5+ {[%clk 0:00:08]} 39. Kh1 {[%clk 0:00:17]}  hxg5 {[%clk 0:00:04]} 40. Rxg5+ {[%clk 0:00:17]}  Kh7 {[%clk 0:00:05]} 41. Rxg8 {[%clk 0:00:14]}  Kxg8 {[%clk 0:00:05]} 42. Qf3 {[%clk 0:00:13]}  Ng4 {[%clk 0:00:04]} 43. Rg2 {[%clk 0:00:12]}  Qe1+ {[%clk 0:00:03]} 44. Rg1 {[%clk 0:00:12]}  Qh4+ {[%clk 0:00:04]} 45. Kg2 {[%clk 0:00:13]}  Qxh5 {[%clk 0:00:03]} 46. Qa8+ {[%clk 0:00:10]}  Kg7 {[%clk 0:00:03]} 47. Qxa7+ {[%clk 0:00:10]}  Kh6 {[%clk 0:00:02]} 48. Qxb6+ {[%clk 0:00:10]}  Kg5 {[%clk 0:00:03]} 49. Qd8+ {[%clk 0:00:11]}  Kf4 {[%clk 0:00:02]} 50. Qd6+ {[%clk 0:00:10]}  Ke3 {[%clk 0:00:03]} 51. Qg3+ {[%clk 0:00:10]}  Kd2 {[%clk 0:00:03]} 52. Qf4+ {[%clk 0:00:07]}  Ke2 {[%clk 0:00:02]} 53. Qf1+ {[%clk 0:00:06]}  Kd2 {[%clk 0:00:03]} 54. Qc1+ {[%clk 0:00:07]}  Kxd3 {[%clk 0:00:02]} 55. Rd1+ {[%clk 0:00:07]}  Ke4 {[%clk 0:00:03]} 56. Qc4+ {[%clk 0:00:06]}  Ke5 {[%clk 0:00:03]} 57. Qxc5+ {[%clk 0:00:06]}  Kf6 {[%clk 0:00:03]} 58. Rd6+ {[%clk 0:00:03]}  Kg5 {[%clk 0:00:04]} 59. Qc1+ {[%clk 0:00:01]}  Kh4 {[%clk 0:00:01]} 60. Qh1+ {[%clk 0:00:01]}  Kg5 {[%clk 0:00:02]} 61. Qxh5+ {[%clk 0:00:02]}  Kxh5 {[%clk 0:00:03]} 62. a5 {[%clk 0:00:03]}  Ne3+ {[%clk 0:00:03]} 63. Kf3 {[%clk 0:00:03]}  Nc4 {[%clk 0:00:04]} 64. Rd5 {[%clk 0:00:04]}  Kg6 {[%clk 0:00:02]} 65. Rc5 {[%clk 0:00:04]}  Nd2+ {[%clk 0:00:01]} 66. Kf4 {[%clk 0:00:05]}  Ne4 {[%clk 0:00:02]} 67. Rxf5 {[%clk 0:00:05]}  Nd6 {[%clk 0:00:02]} 68. Rd5 {[%clk 0:00:05]}  Nc4 {[%clk 0:00:01]} 69. a6 {[%clk 0:00:05]}  Kf6 {[%clk 0:00:02]} 70. a7 {[%clk 0:00:05]}  Nb6 {[%clk 0:00:00]} 71. Rd6+ {[%clk 0:00:06]} 1-0


[Site "https://www.chess.com"]

[Event "Titled Tuesday Blitz June 20 Early 2023"]
[White "Bharath Subramaniyam H"]
[Black "Ahmad, Khagan"]
[WhiteFideId "46634827"]
[BlackFideId "13431552"]
[WhiteElo "2400"]
[BlackElo "2209"]
[Result "1-0"]
[Round "5"]
[TimeControl "180+2"]
[Date "2023.06.20"]
[WhiteClock "0:00:57"]
[BlackClock "0:00:47"]
[Board "38"]

1. e4 {[%clk 0:02:43]}  c5 {[%clk 0:02:57]} 2. Nf3 {[%clk 0:02:42]}  d6 {[%clk 0:02:52]} 3. d4 {[%clk 0:02:41]}  cxd4 {[%clk 0:02:52]} 4. Nxd4 {[%clk 0:02:41]}  Nf6 {[%clk 0:02:53]} 5. Nc3 {[%clk 0:02:42]}  a6 {[%clk 0:02:53]} 6. Rg1 {[%clk 0:02:42]}  e5 {[%clk 0:02:50]} 7. Nb3 {[%clk 0:02:42]}  h5 {[%clk 0:02:51]} 8. Bg5 {[%clk 0:02:41]}  Be6 {[%clk 0:02:51]} 9. Qd2 {[%clk 0:02:37]}  Nbd7 {[%clk 0:02:50]} 10. h4 {[%clk 0:02:36]}  Be7 {[%clk 0:02:50]} 11. f3 {[%clk 0:02:36]}  Rc8 {[%clk 0:02:50]} 12. O-O-O {[%clk 0:02:34]}  b5 {[%clk 0:02:50]} 13. Kb1 {[%clk 0:02:33]}  Nb6 {[%clk 0:02:42]} 14. Bxf6 {[%clk 0:02:31]}  Bxf6 {[%clk 0:02:41]} 15. Qxd6 {[%clk 0:02:29]}  Qxd6 {[%clk 0:02:37]} 16. Rxd6 {[%clk 0:02:29]}  Nc4 {[%clk 0:02:38]} 17. Bxc4 {[%clk 0:02:28]}  bxc4 {[%clk 0:02:38]} 18. Na5 {[%clk 0:02:24]}  Be7 {[%clk 0:02:35]} 19. Rxa6 {[%clk 0:02:23]}  Bb4 {[%clk 0:02:34]} 20. Nd5 {[%clk 0:02:13]}  Bc5 {[%clk 0:02:26]} 21. Rd1 {[%clk 0:02:12]}  O-O {[%clk 0:02:27]} 22. Nc6 {[%clk 0:02:10]}  Rfe8 {[%clk 0:02:23]} 23. b4 {[%clk 0:02:05]}  Bf2 {[%clk 0:02:17]} 24. b5 {[%clk 0:02:02]}  Bxh4 {[%clk 0:02:16]} 25. a4 {[%clk 0:01:49]}  f5 {[%clk 0:02:12]} 26. Ra7 {[%clk 0:01:44]}  Kh7 {[%clk 0:02:09]} 27. exf5 {[%clk 0:01:41]}  Bxf5 {[%clk 0:02:07]} 28. Nde7 {[%clk 0:01:40]}  Rxc6 {[%clk 0:01:57]} 29. Nxc6 {[%clk 0:01:34]}  e4 {[%clk 0:01:57]} 30. fxe4 {[%clk 0:01:34]}  Bxe4 {[%clk 0:01:56]} 31. Rh1 {[%clk 0:01:19]}  Bf6 {[%clk 0:01:51]} 32. Rd7 {[%clk 0:01:09]}  Bxg2 {[%clk 0:01:37]} 33. Rg1 {[%clk 0:01:07]}  Re2 {[%clk 0:01:15]} 34. Nd4 {[%clk 0:00:59]}  Rd2 {[%clk 0:01:04]} 35. Ne6 {[%clk 0:00:58]}  Rxd7 {[%clk 0:01:02]} 36. Nf8+ {[%clk 0:00:58]}  Kh6 {[%clk 0:00:56]} 37. Nxd7 {[%clk 0:00:59]}  Be4 {[%clk 0:00:51]} 38. Nxf6 {[%clk 0:00:59]}  gxf6 {[%clk 0:00:52]} 39. a5 {[%clk 0:00:59]}  h4 {[%clk 0:00:47]} 40. Rg4 {[%clk 0:00:57]} 1-0


[Site "https://www.chess.com"]

[Event "Titled Tuesday Blitz June 20 Early 2023"]
[White "Gontcharov, Vladislav"]
[Black "Ilamparthi A R"]
[WhiteFideId "4123492"]
[BlackFideId "45015775"]
[WhiteElo "2420"]
[BlackElo "2348"]
[Result "1/2-1/2"]
[Round "5"]
[TimeControl "180+2"]
[Date "2023.06.20"]
[WhiteClock "0:00:09"]
[BlackClock "0:00:05"]
[Board "41"]

1. d4 {[%clk 0:03:00]}  Nf6 {[%clk 0:02:59]} 2. c4 {[%clk 0:03:00]}  g6 {[%clk 0:02:59]} 3. Nc3 {[%clk 0:03:00]}  Bg7 {[%clk 0:03:00]} 4. Nf3 {[%clk 0:02:59]}  d6 {[%clk 0:02:58]} 5. Bg5 {[%clk 0:02:58]}  O-O {[%clk 0:02:57]} 6. e3 {[%clk 0:02:58]}  Nbd7 {[%clk 0:02:56]} 7. Be2 {[%clk 0:02:57]}  b6 {[%clk 0:02:45]} 8. O-O {[%clk 0:02:51]}  Bb7 {[%clk 0:02:45]} 9. Qc2 {[%clk 0:02:43]}  e5 {[%clk 0:02:24]} 10. Rad1 {[%clk 0:02:25]}  h6 {[%clk 0:01:42]} 11. Bh4 {[%clk 0:02:20]}  e4 {[%clk 0:01:41]} 12. Nd2 {[%clk 0:02:19]}  g5 {[%clk 0:01:41]} 13. Bg3 {[%clk 0:02:18]}  Re8 {[%clk 0:01:41]} 14. Rde1 {[%clk 0:02:12]}  h5 {[%clk 0:01:39]} 15. f3 {[%clk 0:01:57]}  h4 {[%clk 0:00:51]} 16. Bf2 {[%clk 0:01:54]}  exf3 {[%clk 0:00:51]} 17. Bxf3 {[%clk 0:01:54]}  Bxf3 {[%clk 0:00:49]} 18. Nxf3 {[%clk 0:01:44]}  h3 {[%clk 0:00:49]} 19. gxh3 {[%clk 0:01:38]}  g4 {[%clk 0:00:40]} 20. hxg4 {[%clk 0:01:34]}  Nxg4 {[%clk 0:00:41]} 21. Qf5 {[%clk 0:01:33]}  Nh6 {[%clk 0:00:25]} 22. Qh3 {[%clk 0:01:15]}  Re6 {[%clk 0:00:14]} 23. Kh1 {[%clk 0:01:13]}  Rg6 {[%clk 0:00:14]} 24. Rg1 {[%clk 0:01:07]}  Nf6 {[%clk 0:00:14]} 25. Rxg6 {[%clk 0:01:00]}  fxg6 {[%clk 0:00:14]} 26. Rg1 {[%clk 0:01:00]}  Qe8 {[%clk 0:00:14]} 27. Nh4 {[%clk 0:00:55]}  Ne4 {[%clk 0:00:10]} 28. Nxe4 {[%clk 0:00:52]}  Qxe4+ {[%clk 0:00:11]} 29. Qg2 {[%clk 0:00:52]}  Qxg2+ {[%clk 0:00:11]} 30. Rxg2 {[%clk 0:00:52]}  Re8 {[%clk 0:00:09]} 31. Nxg6 {[%clk 0:00:51]}  Nf5 {[%clk 0:00:09]} 32. Nf4 {[%clk 0:00:49]}  Nxe3 {[%clk 0:00:07]} 33. Rg1 {[%clk 0:00:26]}  Nf5 {[%clk 0:00:05]} 34. Nh5 {[%clk 0:00:25]}  Re2 {[%clk 0:00:05]} 35. Nxg7 {[%clk 0:00:21]}  Nxg7 {[%clk 0:00:06]} 36. Bh4 {[%clk 0:00:21]}  Kf7 {[%clk 0:00:07]} 37. Bd8 {[%clk 0:00:21]}  Ne6 {[%clk 0:00:06]} 38. Bh4 {[%clk 0:00:19]}  Nxd4 {[%clk 0:00:07]} 39. Rf1+ {[%clk 0:00:12]}  Kg6 {[%clk 0:00:07]} 40. Rf2 {[%clk 0:00:12]}  Re1+ {[%clk 0:00:07]} 41. Kg2 {[%clk 0:00:13]}  Re4 {[%clk 0:00:05]} 42. Bg3 {[%clk 0:00:12]}  Nf5 {[%clk 0:00:05]} 43. b3 {[%clk 0:00:12]}  a5 {[%clk 0:00:06]} 44. Kf3 {[%clk 0:00:11]}  Rd4 {[%clk 0:00:06]} 45. Ke2 {[%clk 0:00:11]}  Re4+ {[%clk 0:00:06]} 46. Kd2 {[%clk 0:00:10]}  Rg4 {[%clk 0:00:06]} 47. Rf3 {[%clk 0:00:10]}  a4 {[%clk 0:00:06]} 48. Kd3 {[%clk 0:00:09]}  axb3 {[%clk 0:00:07]} 49. axb3 {[%clk 0:00:09]}  Rd4+ {[%clk 0:00:07]} 50. Kc3 {[%clk 0:00:09]}  Rd1 {[%clk 0:00:08]} 51. Bf2 {[%clk 0:00:08]}  Rf1 {[%clk 0:00:08]} 52. Kd3 {[%clk 0:00:07]}  Kg5 {[%clk 0:00:08]} 53. Be3+ {[%clk 0:00:07]}  Nxe3 {[%clk 0:00:08]} 54. Rxe3 {[%clk 0:00:07]}  Rf2 {[%clk 0:00:08]} 55. h3 {[%clk 0:00:06]}  Kf4 {[%clk 0:00:08]} 56. Re7 {[%clk 0:00:06]}  Rf3+ {[%clk 0:00:08]} 57. Kc2 {[%clk 0:00:07]}  c5 {[%clk 0:00:08]} 58. Re6 {[%clk 0:00:07]}  Rxh3 {[%clk 0:00:06]} 59. Rxd6 {[%clk 0:00:07]}  Ke4 {[%clk 0:00:07]} 60. Rxb6 {[%clk 0:00:07]}  Rh2+ {[%clk 0:00:07]} 61. Kc3 {[%clk 0:00:07]}  Rh3+ {[%clk 0:00:08]} 62. Kb2 {[%clk 0:00:08]}  Rh2+ {[%clk 0:00:08]} 63. Ka3 {[%clk 0:00:08]}  Kd4 {[%clk 0:00:09]} 64. Rg6 {[%clk 0:00:08]}  Rh1 {[%clk 0:00:08]} 65. Ka4 {[%clk 0:00:07]}  Rb1 {[%clk 0:00:08]} 66. Kb5 {[%clk 0:00:07]}  Rxb3+ {[%clk 0:00:07]} 67. Kc6 {[%clk 0:00:07]}  Kxc4 {[%clk 0:00:02]} 68. Rg4+ {[%clk 0:00:07]}  Kc3 {[%clk 0:00:03]} 69. Kxc5 {[%clk 0:00:07]}  Rb2 {[%clk 0:00:04]} 70. Rg3+ {[%clk 0:00:07]}  Kd2 {[%clk 0:00:04]} 71. Rg2+ {[%clk 0:00:08]}  Kc1 {[%clk 0:00:05]} 72. Rxb2 {[%clk 0:00:09]}  Kxb2 {[%clk 0:00:05]} 1/2-1/2


[Site "https://www.chess.com"]

[Event "Titled Tuesday Blitz June 20 Early 2023"]
[White "Quesada Perez, Yuniesky"]
[Black "Akhmedinov, Satbek"]
[WhiteFideId "3504409"]
[BlackFideId "13714287"]
[WhiteElo "2585"]
[BlackElo "1998"]
[Result "0-1"]
[Round "5"]
[TimeControl "180+2"]
[Date "2023.06.20"]
[WhiteClock "0:01:25"]
[BlackClock "0:02:02"]
[Board "43"]

1. e4 {[%clk 0:03:00]}  c5 {[%clk 0:02:59]} 2. Nf3 {[%clk 0:03:00]}  Nc6 {[%clk 0:02:59]} 3. Bb5 {[%clk 0:02:59]}  e5 {[%clk 0:02:59]} 4. c3 {[%clk 0:02:52]}  Bd6 {[%clk 0:02:59]} 5. d3 {[%clk 0:02:51]}  Nge7 {[%clk 0:02:59]} 6. O-O {[%clk 0:02:50]}  O-O {[%clk 0:02:59]} 7. Nbd2 {[%clk 0:02:45]}  a6 {[%clk 0:02:59]} 8. Ba4 {[%clk 0:02:44]}  Bc7 {[%clk 0:02:59]} 9. Re1 {[%clk 0:02:42]}  d5 {[%clk 0:02:57]} 10. Bc2 {[%clk 0:02:39]}  d4 {[%clk 0:02:56]} 11. cxd4 {[%clk 0:02:35]}  Nxd4 {[%clk 0:02:52]} 12. Nxd4 {[%clk 0:02:35]}  Qxd4 {[%clk 0:02:48]} 13. Nf3 {[%clk 0:02:33]}  Qd8 {[%clk 0:02:47]} 14. Be3 {[%clk 0:02:33]}  b6 {[%clk 0:02:47]} 15. Bb3 {[%clk 0:02:32]}  Be6 {[%clk 0:02:41]} 16. Bxe6 {[%clk 0:02:30]}  fxe6 {[%clk 0:02:41]} 17. a4 {[%clk 0:01:57]}  a5 {[%clk 0:02:32]} 18. Qb3 {[%clk 0:01:55]}  Qd6 {[%clk 0:02:32]} 19. Nd2 {[%clk 0:01:55]}  Rad8 {[%clk 0:02:21]} 20. Rad1 {[%clk 0:01:54]}  Qxd3 {[%clk 0:02:07]} 21. Qxe6+ {[%clk 0:01:54]}  Rf7 {[%clk 0:02:08]} 22. Nf1 {[%clk 0:01:41]}  Qxd1 {[%clk 0:02:05]} 23. Rxd1 {[%clk 0:01:42]}  Rxd1 {[%clk 0:02:06]} 24. g3 {[%clk 0:01:38]}  Kf8 {[%clk 0:02:03]} 25. Kg2 {[%clk 0:01:35]}  Rf6 {[%clk 0:02:02]} 26. Qc8+ {[%clk 0:01:25]}  Nxc8 {[%clk 0:02:02]} 0-1


[Site "https://www.chess.com"]